[Event "FIDE Grand Swiss 2023"]
[Site "Villa Marina, Douglas, Isle of Man"]
[Date "2023.11.01"]
[Round "7.46"]
[White "Warmerdam, Max"]
[Black "Adhiban, B."]
[Result "1-0"]
[WhiteElo "2636"]
[BlackElo "2551"]
[EventDate "2023.10.25"]
[ECO "D78"]
[PlyCount "125"]
[BlackFideId "5018471"]
[TimeControl "40/100 + 20/50 + 15 + 30s/move"]
[WhiteFideId "1048104"]

1.d4 {[%clk 01:40:56][%emt 00:00:03]} 1...Nf6 {[%clk 01:40:52][%emt 00:00:09]} 
2.c4 {[%clk 01:41:19][%emt 00:00:07]} 2...g6 {[%clk 01:41:18][%emt 00:00:05]} 
3.g3 {[%clk 01:41:29][%emt 00:00:19]} 3...c6 {[%clk 01:41:31][%emt 00:00:17]} 
4.Bg2 {[%clk 01:38:01][%emt 00:03:57]} 4...d5 {[%clk 01:41:56][%emt 00:00:06]} 
5.Nf3 {[%clk 01:38:26][%emt 00:00:05]} 5...Bg7 {[%clk 01:42:23][%emt 00:00:04]} 
6.O-O {[%clk 01:37:25][%emt 00:01:30]} 6...dxc4 {[%clk 01:42:38][%emt 00:00:15]} 
7.Nc3 {[%clk 01:35:09][%emt 00:02:44]} 7...O-O {[%clk 01:43:00][%emt 00:00:10]} 
8.e4 {[%clk 01:35:23][%emt 00:00:16]} 8...b5 {[%clk 01:43:27][%emt 00:00:04]} 
9.Qe2 {[%clk 01:34:50][%emt 00:01:01]} 9...a5 {[%clk 01:43:55][%emt 00:00:03]} 
10.Rd1 {[%clk 01:31:52][%emt 00:03:27]} 10...Nbd7 {[%clk 01:43:11][%emt
00:01:15]} 11.d5 {[%clk 01:15:56][%emt 00:16:27]} 11...cxd5 {[%clk
01:43:33][%emt 00:00:08]} 12.e5 {[%clk 01:16:01][%emt 00:00:24]} 12...b4 {[%clk
01:43:59][%emt 00:00:05]} 13.exf6 {[%clk 01:16:25][%emt 00:00:05]} 13...Nxf6 
{[%clk 01:44:26][%emt 00:00:03]} 14.Na4 {[%clk 01:16:29][%emt 00:00:26]} 
14...e6 {[%clk 01:35:14][%emt 00:09:43]} 15.Be3 {[%clk 01:14:34][%emt 00:02:24]} 
15...Bd7 {[%clk 01:28:58][%emt 00:06:46]} 16.Nc5 {[%clk 01:02:15][%emt
00:12:49]} 16...Rc8 {[%clk 01:28:19][%emt 00:01:09]} 17.Bd4 {[%clk
01:00:13][%emt 00:02:31]} 17...Qe7 {[%clk 01:21:10][%emt 00:07:40]} 18.Nxd7 
{[%clk 00:59:48][%emt 00:00:55]} 18...Qxd7 {[%clk 01:21:37][%emt 00:00:03]} 
19.Ne5 {[%clk 00:56:10][%emt 00:04:07]} 19...Qc7 {[%clk 01:04:19][%emt
00:17:49]} 20.a3 {[%clk 00:49:01][%emt 00:07:39]} 20...b3 {[%clk 01:03:07][%emt
00:01:41]} 21.a4 {[%clk 00:48:30][%emt 00:01:01]} 21...Nd7 {[%clk 00:55:43][%emt
00:07:55]} 22.f4 {[%clk 00:48:08][%emt 00:00:50]} 22...Rfe8 {[%clk
00:51:24][%emt 00:04:50]} 23.Kh1 {[%clk 00:44:34][%emt 00:04:04]} 23...Nxe5 
{[%clk 00:50:34][%emt 00:01:21]} 24.fxe5 {[%clk 00:42:42][%emt 00:02:22]} 
24...Bf8 {[%clk 00:50:50][%emt 00:00:14]} 25.h4 {[%clk 00:35:42][%emt 00:07:29]} 
25...Bc5 {[%clk 00:41:57][%emt 00:09:23]} 26.Rac1 {[%clk 00:34:33][%emt
00:01:39]} 26...Bxd4 {[%clk 00:38:51][%emt 00:03:36]} 27.Rxd4 {[%clk
00:33:45][%emt 00:01:18]} 27...Qb6 {[%clk 00:35:16][%emt 00:04:02]} 28.Qd2 
{[%clk 00:30:45][%emt 00:03:32]} 28...Qb4 {[%clk 00:34:59][%emt 00:00:47]} 
29.Qh6 {[%clk 00:29:09][%emt 00:02:06]} 29...Qf8 {[%clk 00:28:42][%emt
00:06:48]} 30.Qe3 {[%clk 00:27:40][%emt 00:01:59]} 30...Rc7 {[%clk
00:26:28][%emt 00:02:44]} 31.h5 {[%clk 00:24:55][%emt 00:03:16]} 31...Qb4 
{[%clk 00:25:23][%emt 00:01:35]} 32.Bh3 {[%clk 00:23:04][%emt 00:02:21]} 
32...Qxa4 {[%clk 00:24:53][%emt 00:01:00]} 33.Qh6 {[%clk 00:21:10][%emt
00:02:23]} 33...Qb4 {[%clk 00:12:37][%emt 00:12:46]} 34.hxg6 {[%clk
00:19:03][%emt 00:02:37]} 34...fxg6 {[%clk 00:13:05][%emt 00:00:02]} 35.Rf1 
{[%clk 00:19:03][%emt 00:00:29]} 35...Rg7 {[%clk 00:12:45][%emt 00:00:50]} 
36.Rdf4 {[%clk 00:18:13][%emt 00:01:20]} 36...Qb8 {[%clk 00:09:35][%emt
00:03:42]} 37.Rf6 {[%clk 00:16:06][%emt 00:02:36]} 37...Qc8 {[%clk 00:09:40]
[%emt 00:00:25]} 38.Qf4 {[%clk 00:12:03][%emt 00:04:32]} 38...Rge7 {[%clk
00:09:34][%emt 00:00:36]} 39.Qh6 {[%clk 00:12:05][%emt 00:00:30]} 39...Rg7 
{[%clk 00:09:40][%emt 00:00:25]} 40.Kh2 {[%clk 00:02:55][%emt 00:09:40]} 
40...a4 {[%clk 00:03:55][%emt 00:06:00]} 41.Qf4 {[%clk 00:49:42][%emt 00:03:42]} 
41...Rge7 {[%clk 00:51:10][%emt 00:03:15]} 42.Rf7 {[%clk 00:43:58][%emt
00:06:14]} 42...a3 {[%clk 00:20:57][%emt 00:30:44]} 43.Qf6 {[%clk 00:41:06][%emt
00:03:21]} 43...Rxf7 {[%clk 00:21:22][%emt 00:00:06]} 44.Qxf7+ {[%clk
00:41:32][%emt 00:00:03]} 44...Kh8 {[%clk 00:21:49][%emt 00:00:03]} 45.Rf4 
{[%clk 00:39:54][%emt 00:02:07]} 45...Rf8 {[%clk 00:17:57][%emt 00:04:22]} 
46.Qe7 {[%clk 00:40:19][%emt 00:00:06]} 46...Rxf4 {[%clk 00:13:31][%emt
00:04:57]} 47.gxf4 {[%clk 00:40:42][%emt 00:00:05]} 47...axb2 {[%clk
00:12:36][%emt 00:01:26]} 48.Qf6+ {[%clk 00:41:07][%emt 00:00:05]} 48...Kg8 
{[%clk 00:13:04][%emt 00:00:02]} 49.Bxe6+ {[%clk 00:41:32][%emt 00:00:05]} 
49...Qxe6 {[%clk 00:13:31][%emt 00:00:03]} 50.Qxe6+ {[%clk 00:41:56][%emt
00:00:06]} 50...Kg7 {[%clk 00:13:53][%emt 00:00:08]} 51.Qf6+ {[%clk
00:38:01][%emt 00:04:25]} 51...Kh6 {[%clk 00:14:19][%emt 00:00:04]} 52.Qh4+ 
{[%clk 00:37:28][%emt 00:01:03]} 52...Kg7 {[%clk 00:14:45][%emt 00:00:04]} 
53.Qe1 {[%clk 00:34:48][%emt 00:03:10]} 53...Kf7 {[%clk 00:12:59][%emt
00:02:16]} 54.Qb1 {[%clk 00:33:15][%emt 00:02:02]} 54...c3 {[%clk 00:13:05][%emt
00:00:25]} 55.f5 {[%clk 00:25:34][%emt 00:08:11]} 55...c2 {[%clk 00:09:11][%emt
00:04:25]} 56.Qxb2 {[%clk 00:25:18][%emt 00:00:45]} 56...gxf5 {[%clk
00:09:38][%emt 00:00:04]} 57.Kg3 {[%clk 00:25:29][%emt 00:00:19]} 57...Kg6 
{[%clk 00:09:55][%emt 00:00:13]} 58.Kf4 {[%clk 00:23:48][%emt 00:02:10]} 
58...d4 {[%clk 00:10:12][%emt 00:00:13]} 59.e6 {[%clk 00:24:01][%emt 00:00:17]} 
59...d3 {[%clk 00:09:51][%emt 00:00:52]} 60.e7 {[%clk 00:24:23][%emt 00:00:07]} 
60...Kf7 {[%clk 00:10:11][%emt 00:00:10]} 61.Qxb3+ {[%clk 00:24:47][%emt
00:00:06]} 61...Kxe7 {[%clk 00:10:39][%emt 00:00:03]} 62.Qa3+ {[%clk
00:25:06][%emt 00:00:10]} 62...Ke6 {[%clk 00:11:05][%emt 00:00:04]} 63.Ke3 
{[%clk 00:25:31]} 1-0

[Event "FIDE Grand Swiss 2023"]
[Site "Villa Marina, Douglas, Isle of Man"]
[Date "2023.11.01"]
[Round "7.47"]
[White "Amar, Elham"]
[Black "Gukesh, D"]
[Result "0-1"]
[WhiteElo "2568"]
[BlackElo "2758"]
[EventDate "2023.10.25"]
[ECO "C77"]
[PlyCount "78"]
[BlackClock "00:16:56"]
[BlackFideId "46616543"]
[TimeControl "40/100 + 20/50 + 15 + 30s/move"]
[WhiteClock "00:00:02"]
[WhiteFideId "1533533"]

1.e4 {[%clk 01:40:55][%emt 00:00:04]} 1...e5 {[%clk 01:40:52][%emt 00:00:07]} 
2.Nf3 {[%clk 01:41:20][%emt 00:00:06]} 2...Nc6 {[%clk 01:41:16][%emt 00:00:06]} 
3.Bb5 {[%clk 01:41:45][%emt 00:00:05]} 3...a6 {[%clk 01:40:52][%emt 00:00:54]} 
4.Ba4 {[%clk 01:42:10][%emt 00:00:05]} 4...Nf6 {[%clk 01:41:15][%emt 00:00:07]} 
5.d3 {[%clk 01:42:33][%emt 00:00:07]} 5...b5 {[%clk 01:35:55][%emt 00:05:50]} 
6.Bb3 {[%clk 01:42:58][%emt 00:00:05]} 6...Be7 {[%clk 01:36:17][%emt 00:00:08]} 
7.Nc3 {[%clk 01:42:33][%emt 00:00:55]} 7...d6 {[%clk 01:32:48][%emt 00:03:59]} 
8.a3 {[%clk 01:41:53][%emt 00:01:11]} 8...Rb8 {[%clk 01:26:39][%emt 00:06:39]} 
9.h3 {[%clk 01:39:23][%emt 00:02:59]} 9...a5 {[%clk 01:24:06][%emt 00:03:03]} 
10.O-O {[%clk 01:33:13][%emt 00:06:40]} 10...a4 {[%clk 01:24:00][%emt 00:00:37]} 
11.Ba2 {[%clk 01:33:33][%emt 00:00:10]} 11...O-O {[%clk 01:23:44][%emt
00:00:45]} 12.Be3 {[%clk 01:30:55][%emt 00:03:08]} 12...Bd7 {[%clk
01:24:06][%emt 00:00:08]} 13.Nd5 {[%clk 01:27:24][%emt 00:04:01]} 13...Nxd5 
{[%clk 01:23:52][%emt 00:00:45]} 14.Bxd5 {[%clk 01:26:10][%emt 00:01:43]} 
14...Bf6 {[%clk 01:24:09][%emt 00:00:13]} 15.c3 {[%clk 01:23:00][%emt 00:03:40]} 
15...Ne7 {[%clk 01:18:22][%emt 00:06:17]} 16.Ba2 {[%clk 01:19:35][%emt
00:03:55]} 16...c5 {[%clk 01:15:37][%emt 00:03:16]} 17.Qd2 {[%clk 00:48:43][%emt
00:31:22]} 17...Bc6 {[%clk 01:08:05][%emt 00:08:02]} 18.Rad1 {[%clk
00:41:52][%emt 00:07:20]} 18...Ng6 {[%clk 01:04:13][%emt 00:04:22]} 19.d4 
{[%clk 00:31:33][%emt 00:10:50]} 19...cxd4 {[%clk 00:49:45][%emt 00:14:58]} 
20.cxd4 {[%clk 00:31:58][%emt 00:00:05]} 20...Bxe4 {[%clk 00:50:11][%emt
00:00:04]} 21.Ng5 {[%clk 00:29:55][%emt 00:02:32]} 21...Ba8 {[%clk
00:42:54][%emt 00:07:47]} 22.d5 {[%clk 00:27:48][%emt 00:02:37]} 22...Bxg5 
{[%clk 00:36:58][%emt 00:06:26]} 23.Bxg5 {[%clk 00:28:14][%emt 00:00:04]} 
23...Qd7 {[%clk 00:37:18][%emt 00:00:10]} 24.Be3 {[%clk 00:27:01][%emt
00:01:43]} 24...Rbc8 {[%clk 00:36:52][%emt 00:00:57]} 25.Rc1 {[%clk
00:26:47][%emt 00:00:43]} 25...Ne7 {[%clk 00:36:04][%emt 00:01:18]} 26.f4 
{[%clk 00:26:48][%emt 00:00:29]} 26...e4 {[%clk 00:32:58][%emt 00:03:36]} 27.g4 
{[%clk 00:25:50][%emt 00:01:28]} 27...f5 {[%clk 00:33:23][%emt 00:00:05]} 28.g5 
{[%clk 00:25:21][%emt 00:00:58]} 28...Rxc1 {[%clk 00:22:21][%emt 00:11:33]} 
29.Rxc1 {[%clk 00:25:43][%emt 00:00:08]} 29...Rc8 {[%clk 00:22:27][%emt
00:00:24]} 30.Rc6 {[%clk 00:25:10][%emt 00:01:03]} 30...Kf8 {[%clk
00:22:49][%emt 00:00:08]} 31.Rb6 {[%clk 00:23:06][%emt 00:02:34]} 31...Rd8 
{[%clk 00:22:34][%emt 00:00:45]} 32.Bd4 {[%clk 00:10:43][%emt 00:12:53]} 
32...Bb7 {[%clk 00:21:41][%emt 00:01:23]} 33.Qc3 {[%clk 00:09:36][%emt
00:01:37]} 33...Bxd5 {[%clk 00:21:03][%emt 00:01:07]} 34.Bxg7+ {[%clk
00:09:38][%emt 00:00:28]} 34...Ke8 {[%clk 00:21:09][%emt 00:00:24]} 35.Bb1 
{[%clk 00:07:09][%emt 00:03:00]} 35...Rc8 {[%clk 00:19:39][%emt 00:02:00]} 
36.Qe3 {[%clk 00:05:50][%emt 00:01:49]} 36...Bg8 {[%clk 00:17:50][%emt
00:02:19]} 37.Qd4 {[%clk 00:03:14][%emt 00:03:07]} 37...Qc7 {[%clk
00:16:34][%emt 00:01:45]} 38.Rxd6 {[%clk 00:01:07][%emt 00:02:37]} 38...Qc1+ 
{[%clk 00:16:54][%emt 00:00:10]} 39.Qd1 {[%clk 00:01:16][%emt 00:00:21]} 
39...Nd5 {[%clk 00:16:56][%emt 00:00:28]} 0-1

[Event "FIDE Grand Swiss 2023"]
[Site "Villa Marina, Douglas, Isle of Man"]
[Date "2023.11.01"]
[Round "7.48"]
[White "Kozak, Adam"]
[Black "Van Foreest, Jorden"]
[Result "0-1"]
[WhiteElo "2566"]
[BlackElo "2707"]
[EventDate "2023.10.25"]
[ECO "B10"]
[PlyCount "74"]
[BlackClock "00:25:01"]
[BlackFideId "1039784"]
[TimeControl "40/100 + 20/50 + 15 + 30s/move"]
[WhiteClock "00:00:27"]
[WhiteFideId "753246"]

1.e4 {[%clk 01:40:53][%emt 00:00:07]} 1...c6 {[%clk 01:40:19][%emt 00:00:41]} 
2.Nf3 {[%clk 01:41:10][%emt 00:00:14]} 2...d5 {[%clk 01:40:11][%emt 00:00:38]} 
3.exd5 {[%clk 01:41:34][%emt 00:00:06]} 3...cxd5 {[%clk 01:39:58][%emt
00:00:43]} 4.Ne5 {[%clk 01:41:57][%emt 00:00:06]} 4...a6 {[%clk 01:38:48][%emt
00:01:39]} 5.d4 {[%clk 01:42:02][%emt 00:00:27]} 5...Nc6 {[%clk 01:38:25][%emt
00:00:53]} 6.c4 {[%clk 01:42:25][%emt 00:00:07]} 6...e6 {[%clk 01:38:09][%emt
00:00:45]} 7.Be2 {[%clk 01:26:07][%emt 00:16:48]} 7...dxc4 {[%clk 01:37:08][%emt
00:01:31]} 8.Nxc6 {[%clk 01:26:26][%emt 00:00:12]} 8...bxc6 {[%clk
01:37:11][%emt 00:00:27]} 9.Bxc4 {[%clk 01:24:57][%emt 00:01:59]} 9...Ne7 
{[%clk 01:36:10][%emt 00:01:30]} 10.O-O {[%clk 01:19:15][%emt 00:06:13]} 
10...Nf5 {[%clk 01:35:52][%emt 00:00:48]} 11.Be3 {[%clk 01:16:49][%emt
00:02:56]} 11...g6 {[%clk 01:29:39][%emt 00:06:43]} 12.Nd2 {[%clk 01:02:59][%emt
00:14:20]} 12...Bg7 {[%clk 01:28:18][%emt 00:01:51]} 13.Nf3 {[%clk
01:01:23][%emt 00:02:05]} 13...O-O {[%clk 01:25:19][%emt 00:03:29]} 14.Rc1 
{[%clk 01:01:34][%emt 00:00:20]} 14...a5 {[%clk 01:24:22][%emt 00:01:27]} 15.b3 
{[%clk 00:52:27][%emt 00:09:37]} 15...Ra7 {[%clk 01:20:16][%emt 00:04:36]} 
16.Bd3 {[%clk 00:39:58][%emt 00:12:59]} 16...Nxd4 {[%clk 00:59:29][%emt
00:21:17]} 17.Be4 {[%clk 00:39:45][%emt 00:00:43]} 17...e5 {[%clk 00:57:07][%emt
00:02:52]} 18.Re1 {[%clk 00:35:23][%emt 00:04:52]} 18...Bb7 {[%clk
00:52:44][%emt 00:04:53]} 19.Bxd4 {[%clk 00:23:40][%emt 00:12:13]} 19...exd4 
{[%clk 00:53:01][%emt 00:00:12]} 20.Bxc6 {[%clk 00:24:07][%emt 00:00:03]} 
20...Bh6 {[%clk 00:50:30][%emt 00:03:01]} 21.Rc4 {[%clk 00:18:58][%emt
00:05:40]} 21...Bxc6 {[%clk 00:50:07][%emt 00:00:52]} 22.Rxc6 {[%clk
00:19:21][%emt 00:00:08]} 22...d3 {[%clk 00:50:06][%emt 00:00:31]} 23.Rc4 
{[%clk 00:17:17][%emt 00:02:34]} 23...d2 {[%clk 00:45:57][%emt 00:04:39]} 
24.Ree4 {[%clk 00:15:12][%emt 00:02:35]} 24...Re8 {[%clk 00:42:31][%emt
00:03:56]} 25.Rxe8+ {[%clk 00:03:55][%emt 00:11:47]} 25...Qxe8 {[%clk
00:42:48][%emt 00:00:12]} 26.g4 {[%clk 00:03:32][%emt 00:00:53]} 26...Re7 
{[%clk 00:41:26][%emt 00:01:51]} 27.Kf1 {[%clk 00:03:55][%emt 00:00:07]} 
27...Qa8 {[%clk 00:39:24][%emt 00:02:33]} 28.Rd4 {[%clk 00:02:02][%emt
00:02:24]} 28...Qc6 {[%clk 00:35:19][%emt 00:04:34]} 29.Rxd2 {[%clk
00:01:03][%emt 00:01:29]} 29...Bxd2 {[%clk 00:35:26][%emt 00:00:22]} 30.Qxd2 
{[%clk 00:01:31][%emt 00:00:02]} 30...f5 {[%clk 00:28:27][%emt 00:07:30]} 
31.Qg5 {[%clk 00:00:32][%emt 00:01:29]} 31...Rf7 {[%clk 00:28:13][%emt
00:00:43]} 32.Qf4 {[%clk 00:00:32][%emt 00:00:31]} 32...Qd5 {[%clk
00:24:21][%emt 00:04:22]} 33.Ng5 {[%clk 00:00:32][%emt 00:00:31]} 33...Qh1+ 
{[%clk 00:24:25][%emt 00:00:24]} 34.Ke2 {[%clk 00:01:00][%emt 00:00:02]} 
34...Re7+ {[%clk 00:24:44][%emt 00:00:12]} 35.Kd3 {[%clk 00:00:32][%emt
00:00:58]} 35...Rd7+ {[%clk 00:24:39][%emt 00:00:34]} 36.Kc3 {[%clk
00:00:32][%emt 00:00:31]} 36...Qe1+ {[%clk 00:24:42][%emt 00:00:27]} 37.Kc2 
{[%clk 00:00:35][%emt 00:00:27]} 37...Qe2+ {[%clk 00:25:01][%emt 00:00:10]} 0-1

[Event "FIDE Grand Swiss 2023"]
[Site "Villa Marina, Douglas, Isle of Man"]
[Date "2023.11.01"]
[Round "7.49"]
[White "Donchenko, Alexander"]
[Black "Fawzy, Adham"]
[Result "1/2-1/2"]
[WhiteElo "2676"]
[BlackElo "2535"]
[EventDate "2023.10.25"]
[ECO "A37"]
[PlyCount "63"]
[BlackClock "00:31:28"]
[BlackFideId "10613129"]
[TimeControl "40/100 + 20/50 + 15 + 30s/move"]
[WhiteClock "00:08:54"]
[WhiteFideId "24603295"]

1.c4 {[%clk 01:40:58][%emt 00:00:02]} 1...c5 {[%clk 01:40:03][%emt 00:00:57]} 
2.Nf3 {[%clk 01:41:09][%emt 00:00:19]} 2...Nc6 {[%clk 01:40:08][%emt 00:00:24]} 
3.Nc3 {[%clk 01:41:27][%emt 00:00:14]} 3...e5 {[%clk 01:40:21][%emt 00:00:16]} 
4.g3 {[%clk 01:41:38][%emt 00:00:19]} 4...g6 {[%clk 01:40:32][%emt 00:00:19]} 
5.Bg2 {[%clk 01:41:56][%emt 00:00:13]} 5...Bg7 {[%clk 01:40:36][%emt 00:00:26]} 
6.d3 {[%clk 01:42:08][%emt 00:00:18]} 6...Nge7 {[%clk 01:40:31][%emt 00:00:34]} 
7.Bg5 {[%clk 01:42:12][%emt 00:00:26]} 7...O-O {[%clk 01:36:12][%emt 00:04:49]} 
8.h4 {[%clk 01:41:16][%emt 00:01:27]} 8...h6 {[%clk 01:30:15][%emt 00:06:27]} 
9.Bxe7 {[%clk 01:41:23][%emt 00:00:23]} 9...Nxe7 {[%clk 01:29:33][%emt
00:01:11]} 10.h5 {[%clk 01:41:37][%emt 00:00:16]} 10...g5 {[%clk 01:27:30][%emt
00:02:33]} 11.e4 {[%clk 01:41:59][%emt 00:00:08]} 11...d6 {[%clk 01:26:08][%emt
00:01:52]} 12.Nh2 {[%clk 01:42:08][%emt 00:00:21]} 12...Nc6 {[%clk
01:23:40][%emt 00:02:59]} 13.O-O {[%clk 01:37:36][%emt 00:05:02]} 13...Be6 
{[%clk 01:20:27][%emt 00:03:42]} 14.Ng4 {[%clk 01:26:23][%emt 00:11:43]} 
14...a6 {[%clk 01:19:01][%emt 00:01:56]} 15.Ne3 {[%clk 01:19:12][%emt 00:07:41]} 
15...Rb8 {[%clk 01:18:12][%emt 00:01:19]} 16.Bf3 {[%clk 01:10:15][%emt
00:09:27]} 16...b5 {[%clk 01:16:54][%emt 00:01:49]} 17.b3 {[%clk 01:07:37][%emt
00:03:08]} 17...Nd4 {[%clk 01:15:59][%emt 00:01:23]} 18.Bg4 {[%clk
01:06:49][%emt 00:01:19]} 18...Qd7 {[%clk 01:14:27][%emt 00:02:03]} 19.Rc1 
{[%clk 00:53:43][%emt 00:13:35]} 19...Kh8 {[%clk 01:11:53][%emt 00:03:05]} 
20.f3 {[%clk 00:50:17][%emt 00:03:56]} 20...b4 {[%clk 01:02:40][%emt 00:09:42]} 
21.Ne2 {[%clk 00:33:53][%emt 00:16:53]} 21...a5 {[%clk 00:58:00][%emt 00:05:10]} 
22.Nxd4 {[%clk 00:30:52][%emt 00:03:31]} 22...exd4 {[%clk 00:56:01][%emt
00:02:29]} 23.Nf5 {[%clk 00:30:54][%emt 00:00:28]} 23...a4 {[%clk 00:51:49][%emt
00:04:42]} 24.Rc2 {[%clk 00:29:41][%emt 00:01:43]} 24...Rg8 {[%clk
00:48:50][%emt 00:03:29]} 25.Kh1 {[%clk 00:23:26][%emt 00:06:45]} 25...Ra8 
{[%clk 00:48:19][%emt 00:01:01]} 26.f4 {[%clk 00:19:22][%emt 00:04:35]} 
26...gxf4 {[%clk 00:46:43][%emt 00:02:05]} 27.gxf4 {[%clk 00:19:08][%emt
00:00:44]} 27...axb3 {[%clk 00:44:45][%emt 00:02:29]} 28.axb3 {[%clk
00:19:32][%emt 00:00:06]} 28...Bf6 {[%clk 00:43:58][%emt 00:01:16]} 29.Rg2 
{[%clk 00:14:13][%emt 00:05:50]} 29...Bxf5 {[%clk 00:43:55][%emt 00:00:33]} 
30.Bxf5 {[%clk 00:14:37][%emt 00:00:06]} 30...Qa7 {[%clk 00:43:56][%emt
00:00:29]} 31.Rxg8+ {[%clk 00:11:08][%emt 00:04:00]} 31...Rxg8 {[%clk
00:43:28][%emt 00:00:58]} 32.Qa1 {[%clk 00:08:54][%emt 00:02:43]} 1/2-1/2

[Event "FIDE Grand Swiss 2023"]
[Site "Villa Marina, Douglas, Isle of Man"]
[Date "2023.11.01"]
[Round "7.50"]
[White "Shevchenko, Kirill"]
[Black "Parligras, Mircea-Emilian"]
[Result "1/2-1/2"]
[WhiteElo "2671"]
[BlackElo "2561"]
[EventDate "2023.10.25"]
[ECO "A07"]
[PlyCount "73"]
[BlackClock "00:00:48"]
[BlackFideId "1204297"]
[TimeControl "40/100 + 20/50 + 15 + 30s/move"]
[WhiteClock "00:00:47"]
[WhiteFideId "14129574"]

1.Nf3 {[%clk 01:40:54][%emt 00:00:05]} 1...d5 {[%clk 01:40:45][%emt 00:00:15]} 
2.g3 {[%clk 01:41:08][%emt 00:00:16]} 2...b6 {[%clk 01:41:03][%emt 00:00:12]} 
3.Bg2 {[%clk 01:35:12][%emt 00:06:26]} 3...Bb7 {[%clk 01:41:24][%emt 00:00:09]} 
4.O-O {[%clk 01:32:05][%emt 00:03:38]} 4...e6 {[%clk 01:39:08][%emt 00:02:45]} 
5.d3 {[%clk 01:32:16][%emt 00:00:19]} 5...Nf6 {[%clk 01:39:11][%emt 00:00:26]} 
6.c4 {[%clk 01:31:24][%emt 00:01:23]} 6...dxc4 {[%clk 01:38:17][%emt 00:01:25]} 
7.dxc4 {[%clk 01:30:52][%emt 00:01:02]} 7...Qxd1 {[%clk 01:37:59][%emt
00:00:48]} 8.Rxd1 {[%clk 01:31:21][%emt 00:00:01]} 8...Bd6 {[%clk 01:37:50][%emt
00:00:38]} 9.Nc3 {[%clk 01:24:44][%emt 00:07:08]} 9...a6 {[%clk 01:37:57][%emt
00:00:23]} 10.Nd4 {[%clk 01:08:53][%emt 00:16:20]} 10...Bxg2 {[%clk
01:37:37][%emt 00:00:50]} 11.Kxg2 {[%clk 01:09:22][%emt 00:00:02]} 11...Nbd7 
{[%clk 01:22:26][%emt 00:15:41]} 12.Bg5 {[%clk 00:55:43][%emt 00:14:09]} 
12...h6 {[%clk 00:54:52][%emt 00:28:04]} 13.Bxf6 {[%clk 00:56:02][%emt
00:00:11]} 13...Nxf6 {[%clk 00:54:09][%emt 00:01:13]} 14.Na4 {[%clk
00:55:27][%emt 00:01:04]} 14...O-O-O {[%clk 00:38:30][%emt 00:16:10]} 15.Rac1 
{[%clk 00:44:36][%emt 00:11:21]} 15...Kb7 {[%clk 00:35:08][%emt 00:03:52]} 
16.c5 {[%clk 00:38:50][%emt 00:06:16]} 16...Be7 {[%clk 00:31:29][%emt 00:04:09]} 
17.b4 {[%clk 00:25:54][%emt 00:13:26]} 17...b5 {[%clk 00:28:29][%emt 00:03:30]} 
18.Nc3 {[%clk 00:26:05][%emt 00:00:19]} 18...Nd5 {[%clk 00:21:11][%emt
00:07:48]} 19.Nxd5 {[%clk 00:24:40][%emt 00:01:55]} 19...exd5 {[%clk
00:20:02][%emt 00:01:40]} 20.a4 {[%clk 00:08:44][%emt 00:16:26]} 20...bxa4 
{[%clk 00:16:56][%emt 00:03:35]} 21.Ra1 {[%clk 00:09:10][%emt 00:00:04]} 
21...Bf6 {[%clk 00:16:50][%emt 00:00:36]} 22.Rxa4 {[%clk 00:09:36][%emt
00:00:04]} 22...Bxd4 {[%clk 00:16:14][%emt 00:01:06]} 23.Rxd4 {[%clk
00:10:02][%emt 00:00:05]} 23...Rhe8 {[%clk 00:13:23][%emt 00:03:21]} 24.Kf3 
{[%clk 00:10:18][%emt 00:00:14]} 24...Re5 {[%clk 00:12:40][%emt 00:01:12]} 
25.e3 {[%clk 00:08:26][%emt 00:02:21]} 25...Rde8 {[%clk 00:11:42][%emt
00:01:29]} 26.c6+ {[%clk 00:03:35][%emt 00:05:21]} 26...Kxc6 {[%clk
00:05:58][%emt 00:06:14]} 27.Rxa6+ {[%clk 00:04:02][%emt 00:00:03]} 27...Kb7 
{[%clk 00:05:18][%emt 00:01:09]} 28.Ra2 {[%clk 00:00:50][%emt 00:03:43]} 
28...c6 {[%clk 00:04:26][%emt 00:01:23]} 29.Rd3 {[%clk 00:00:51][%emt 00:00:29]} 
29...Kb6 {[%clk 00:01:22][%emt 00:03:34]} 30.Rda3 {[%clk 00:00:50][%emt
00:00:30]} 30...Kb5 {[%clk 00:01:02][%emt 00:00:50]} 31.Ra7 {[%clk
00:00:45][%emt 00:00:36]} 31...R8e7 {[%clk 00:01:12][%emt 00:00:19]} 32.Ra8 
{[%clk 00:00:51][%emt 00:00:25]} 32...Rb7 {[%clk 00:00:42][%emt 00:00:59]} 
33.Rc2 {[%clk 00:00:34][%emt 00:00:47]} 33...Re6 {[%clk 00:00:44][%emt
00:00:28]} 34.Kg2 {[%clk 00:00:31][%emt 00:00:33]} 34...Rb6 {[%clk
00:00:42][%emt 00:00:32]} 35.Ra7 {[%clk 00:00:45][%emt 00:00:17]} 35...Rf6 
{[%clk 00:00:59][%emt 00:00:13]} 36.Ra1 {[%clk 00:00:32][%emt 00:00:43]} 
36...Ra6 {[%clk 00:00:59][%emt 00:00:29]} 37.Rb1 {[%clk 00:00:47][%emt
00:00:15]} 1/2-1/2